fUSD/lending_fUSD_20240117
["ID","MTS","AMOUNT","RATE_DAILY","PERIOD"]
[311938585,1705510286010,-500.0,0.00022499,2]
[311938587,1705510286020,-500.0,0.00022499,2]
[311938589,1705510286048,-500.0,0.00022499,2]
[311938591,1705510286059,-500.0,0.00022499,2]
[311938593,1705510286090,-500.0,0.00022499,2]
[311938594,1705510286102,-500.0,0.00022499,2]
[311938596,1705510286118,-500.0,0.00022499,2]
[311938598,1705510286136,-500.0,0.00022499,2]
[311938600,1705510286156,-515.65118876,0.00022499,2]
[311938601,1705510286169,-500.0,0.00022499,2]
[311938603,1705510286201,-500.0,0.00022499,2]
[311938605,1705510286216,-500.0,0.00022499,2]
[311938607,1705510286225,-507.52961282,0.00022499,2]
[311938609,1705510286234,-500.0,0.00022499,2]
[311938611,1705510286245,-500.0,0.00022499,2]
[311938613,1705510286255,-500.0,0.00022499,2]
[311938615,1705510286268,-500.0,0.00022499,2]
[311938618,1705510286284,-500.0,0.00022499,2]
[311938620,1705510286300,-500.0,0.00022499,2]
[311938622,1705510286312,-500.0,0.00022499,2]
[311938623,1705510286327,-500.0,0.00022499,2]
[311938625,1705510286340,-500.0,0.00022499,2]
[311938627,1705510286351,-500.0,0.00022499,2]
[311938630,1705510286364,-500.0,0.00022499,2]
[311938631,1705510286375,-500.0,0.00022499,2]
[311938633,1705510286388,-500.0,0.00022499,2]
[311938635,1705510286401,-500.0,0.00022499,2]
[311938638,1705510286418,-520.18,0.00022499,2]
[311938639,1705510286437,-500.0,0.00022499,2]
[311938641,1705510286456,-501.98059409,0.00022499,2]
[311938643,1705510286483,-500.0,0.00022499,2]
[311938645,1705510286494,-500.0,0.00022499,2]
[311938646,1705510286527,-299.97900809,0.00022499,2]
[311938647,1705510286548,-500.0,0.00022499,2]
[311938649,1705510286559,-500.0,0.00022499,2]
[311938651,1705510286587,-500.0,0.00022499,2]
[311938653,1705510286600,-536.15650136,0.00022499,2]
[311938655,1705510286626,-500.0,0.00022499,2]
[311938657,1705510286653,-500.0,0.00022499,2]
[311938659,1705510286674,-500.0,0.00022499,2]
[311938661,1705510286712,-500.0,0.00022499,2]
[311938663,1705510286725,-500.0,0.00022499,2]
[311938665,1705510286751,-500.0,0.00022499,2]
[311938667,1705510286778,-500.0,0.00022499,2]
[311938669,1705510286800,-500.0,0.00022499,2]
[311938671,1705510286811,-507.40407892,0.00022499,2]
[311938673,1705510286867,-500.0,0.00022499,2]
[311938675,1705510286891,-500.0,0.00022499,2]
[311938677,1705510286912,-500.0,0.00022499,2]
[311938679,1705510286941,-500.0,0.00022499,2]
[311938681,1705510286963,-500.0,0.00022499,2]
[311938683,1705510286986,-500.0,0.00022499,2]
[311938686,1705510287021,-501.33276101,0.00022499,2]
[311938688,1705510287039,-505.02561498,0.00022499,2]
[311938690,1705510287067,-500.0,0.00022499,2]
[311938692,1705510287091,-500.0,0.00022499,2]
[311938693,1705510287113,-500.0,0.00022499,2]
[311938696,1705510287136,-500.0,0.00022499,2]
[311938698,1705510287163,-500.0,0.00022499,2]
[311938699,1705510287193,-500.0,0.00022499,2]
[311938701,1705510287218,-500.0,0.00022499,2]
[311938703,1705510287251,-500.0,0.00022499,2]
[311938705,1705510287270,-500.0,0.00022499,2]
[311938708,1705510287329,-500.0,0.00022499,2]
[311938710,1705510287347,-12296.30043057,0.000225,2]
[311938712,1705510287378,-895.17278907,0.00022531,2]
[311938714,1705510287424,-500.0,0.00022534,2]
[311938716,1705510287475,-500.0,0.00022534,2]
[311938717,1705510287497,-500.0,0.00022534,2]
[311938720,1705510287511,-500.0,0.00022534,2]
[311938721,1705510287537,-500.0,0.00022534,2]
[311938723,1705510287562,-500.0,0.00022534,2]
[311938725,1705510287578,-500.0,0.00022534,2]
[311938727,1705510287599,-480.0,0.00022534,2]
[311938729,1705510287618,-500.0,0.00022534,2]
[311938731,1705510287641,-500.0,0.00022534,2]
[311938732,1705510287676,-500.0,0.00022534,2]
[311938734,1705510287689,-500.0,0.00022534,2]
[311938736,1705510287720,-500.0,0.00022534,2]
[311938738,1705510287732,-500.0,0.00022534,2]
[311938740,1705510287747,-729.89,0.00022534,2]
[311938742,1705510287758,-500.0,0.00022534,2]
[311938744,1705510287797,-500.0,0.00022534,2]
[311938747,1705510287833,-500.0,0.00022534,2]
[311938748,1705510287849,-500.0,0.00022534,2]
[311938750,1705510287893,-500.0,0.00022534,2]
[311938752,1705510287917,-500.0,0.00022534,2]
[311938755,1705510287937,-500.0,0.00022534,2]
[311938757,1705510287972,-500.0,0.00022534,2]
[311938758,1705510288018,-500.0,0.00022534,2]
[311938761,1705510288035,-500.0,0.00022535,2]
[311938762,1705510288084,-283.39,0.00022535,2]
[311938764,1705510288143,-382.49,0.00022535,2]
[311938766,1705510288188,-342.6,0.00022535,2]
[311938768,1705510288220,-500.0,0.00022535,2]
[311938770,1705510288245,-200.54,0.00022535,2]
[311938772,1705510288259,-500.0,0.00022535,2]
[311938775,1705510288277,-517.61,0.00022535,2]
[311938777,1705510288294,-634.83,0.00022535,2]
[311938779,1705510288323,-244.04,0.00022535,2]
[311938781,1705510288351,-447.38,0.00022535,2]
[311938783,1705510288374,-500.0,0.00022535,2]
[311938784,1705510288390,-483.32,0.00022535,2]
[311938786,1705510288412,-500.0,0.00022535,2]
[311938788,1705510288434,-500.0,0.00022535,2]
[311938790,1705510288459,-500.0,0.00022535,2]
[311938792,1705510288491,-500.0,0.00022535,2]
[311938794,1705510288508,-500.0,0.00022535,2]
[311938796,1705510288533,-599.38,0.00022535,2]
[311938799,1705510288567,-500.0,0.00022535,2]
[311938800,1705510288587,-500.0,0.00022535,2]
[311938802,1705510288603,-643.72,0.00022535,2]
[311938804,1705510288628,-556.84,0.00022535,2]
[311938806,1705510288645,-247.22,0.00022535,2]
[311938808,1705510288666,-214.06,0.00022535,2]
[311938810,1705510288685,-500.0,0.00022535,2]
[311938812,1705510288695,-500.0,0.00022535,2]
[311938814,1705510288714,-186.33,0.00022535,2]
[311938816,1705510288751,-500.0,0.00022535,2]
[311938818,1705510288769,-391.89,0.00022535,2]
[311938819,1705510288791,-500.0,0.00022535,2]
[311938821,1705510288817,-150.0,0.00022535,2]
[311938824,1705510288846,-500.0,0.00022535,2]
[311938826,1705510288871,-500.0,0.00022535,2]
[311938829,1705510288916,-575.39,0.00022535,2]
[311938831,1705510288933,-230.06,0.00022535,2]
[311938833,1705510288966,-642.16,0.00022535,2]
[311938835,1705510288998,-577.25,0.00022535,2]
[311938836,1705510289019,-500.0,0.00022535,2]
[311938838,1705510289042,-500.0,0.00022535,2]
[311938841,1705510289064,-500.0,0.00022535,2]
[311938843,1705510289094,-500.0,0.00022535,2]
[311938845,1705510289122,-500.0,0.00022535,2]
[311938847,1705510289145,-630.33,0.00022535,2]
[311938849,1705510289174,-289.1,0.00022535,2]
[311938851,1705510289189,-251.78,0.00022535,2]
[311938853,1705510289207,-500.0,0.00022535,2]
[311938855,1705510289232,-500.0,0.00022535,2]
[311938858,1705510289257,-500.0,0.00022535,2]
[311938860,1705510289288,-500.0,0.00022535,2]
[311938861,1705510289308,-465.33,0.00022535,2]
[311938862,1705510289323,-500.0,0.00022535,2]
[311938863,1705510289340,-470.95,0.00022535,2]
[311938865,1705510289370,-500.0,0.00022535,2]
[311938867,1705510289405,-592.94,0.00022535,2]
[311938869,1705510289429,-451.49,0.00022535,2]
[311938871,1705510289457,-500.0,0.00022535,2]
[311938873,1705510289499,-500.0,0.00022535,2]
[311938875,1705510289526,-233.47,0.00022535,2]
[311938876,1705510289553,-500.0,0.00022535,2]
[311938878,1705510289581,-168.78,0.00022535,2]
[311938881,1705510289595,-500.0,0.00022535,2]
[311938883,1705510289646,-500.0,0.00022535,2]
[311938885,1705510289662,-210.42,0.00022535,2]
[311938887,1705510289682,-500.0,0.00022535,2]
[311938889,1705510289706,-500.0,0.00022535,2]
[311938891,1705510289729,-525.96,0.00022535,2]
[311938893,1705510289743,-500.0,0.00022535,2]
[311938895,1705510289758,-500.0,0.00022535,2]
[311938897,1705510289774,-295.17,0.00022535,2]
[311938899,1705510289792,-456.05,0.00022535,2]
[311938901,1705510289818,-500.0,0.00022535,2]
[311938903,1705510289843,-212.41,0.00022535,2]
[311938905,1705510289860,-500.0,0.00022535,2]
[311938907,1705510289885,-500.0,0.00022535,2]
[311938909,1705510289908,-357.4,0.00022535,2]
[311938911,1705510289931,-646.34,0.00022535,2]
[311938912,1705510289944,-500.0,0.00022535,2]
[311938913,1705510289987,-232.6,0.00022535,2]
[311938914,1705510290012,-500.0,0.00022535,2]
[311938915,1705510290025,-190.4,0.00022535,2]
[311938916,1705510290047,-500.0,0.00022535,2]
[311938917,1705510290071,-431.75,0.00022535,2]
[311938919,1705510290101,-517.83,0.00022535,2]
[311938922,1705510290134,-500.0,0.00022535,2]
[311938924,1705510290167,-500.0,0.00022535,2]
[311938926,1705510290199,-500.0,0.00022535,2]
[311938928,1705510290227,-500.0,0.00022535,2]
[311938929,1705510290263,-500.0,0.00022535,2]
[311938930,1705510290295,-500.0,0.00022535,2]
[311938932,1705510290325,-500.0,0.00022535,2]
[311938934,1705510290343,-500.0,0.00022535,2]
[311938936,1705510290379,-500.0,0.00022535,2]
[311938938,1705510290409,-541.94,0.00022535,2]
[311938940,1705510290438,-500.0,0.00022535,2]
[311938942,1705510290464,-500.0,0.00022535,2]
[311938944,1705510290497,-500.0,0.00022535,2]
[311938946,1705510290519,-500.0,0.00022535,2]
[311938948,1705510290548,-500.0,0.00022535,2]
[311938950,1705510290587,-987.72,0.00022535,5]
[311938952,1705510290599,-219.93,0.00022535,2]
[311938954,1705510290626,-500.0,0.00022535,2]
[311938956,1705510290655,-500.0,0.00022535,2]
[311938958,1705510290693,-167.05,0.00022535,2]
[311938961,1705510290725,-581.11,0.00022535,2]
[311938963,1705510290751,-500.0,0.00022535,2]
[311938966,1705510290793,-365.13,0.00022535,2]
[311938967,1705510290826,-500.0,0.00022535,2]
[311938969,1705510290850,-500.0,0.00022535,2]
[311938971,1705510290894,-500.0,0.00022535,2]
[311938973,1705510290915,-500.0,0.00022535,2]
[311938976,1705510290947,-500.0,0.00022535,2]
[311938978,1705510290983,-500.0,0.00022535,2]
[311938980,1705510291009,-500.0,0.00022535,2]
[311938982,1705510291030,-500.0,0.00022535,2]
[311938984,1705510291055,-500.0,0.00022535,2]
[311938986,1705510291084,-500.0,0.00022535,2]
[311938988,1705510291106,-229.49,0.00022535,2]
[311938990,1705510291148,-500.0,0.00022535,2]
[311938992,1705510291170,-500.0,0.00022535,2]
[311938994,1705510291195,-500.0,0.00022535,2]
[311938996,1705510291241,-500.0,0.00022535,2]
[311938998,1705510291264,-500.0,0.00022535,2]
[311939000,1705510291283,-500.0,0.00022535,2]
[311939001,1705510291297,-500.0,0.00022535,2]
[311939002,1705510291336,-530.85,0.00022535,2]
[311939004,1705510291365,-500.0,0.00022535,2]
[311939007,1705510291409,-500.0,0.00022535,2]
[311939009,1705510291436,-500.0,0.00022535,2]
[311939011,1705510291459,-438.97,0.00022535,2]
[311939013,1705510291486,-626.56,0.00022535,2]
[311939015,1705510291535,-500.0,0.00022535,2]
[311939017,1705510291556,-363.78,0.00022535,2]
[311939019,1705510291581,-500.0,0.00022535,2]
[311939021,1705510291601,-500.0,0.00022535,2]
[311939023,1705510291657,-500.0,0.00022535,2]
[311939025,1705510291671,-610.24,0.00022535,2]
[311939028,1705510291713,-500.0,0.00022535,2]
[311939030,1705510291750,-500.0,0.00022535,2]
[311939031,1705510291773,-500.0,0.00022535,2]
[311939033,1705510291796,-150.53,0.00022536,2]
[311939035,1705510291833,-500.0,0.00022536,2]
[311939037,1705510291869,-500.0,0.00022536,2]
[311939039,1705510291884,-500.0,0.00022536,2]
[311939041,1705510291907,-500.0,0.00022536,2]
[311939044,1705510291965,-500.0,0.00022536,2]
[311939046,1705510292010,-500.0,0.00022536,2]
[311939048,1705510292027,-353.34,0.00022536,2]
[311939050,1705510292059,-4025.93,0.00022536,2]
[311939052,1705510292080,-500.0,0.00022536,2]
[311939054,1705510292116,-500.0,0.00022536,2]
[311939056,1705510292134,-500.0,0.00022536,2]
[311939058,1705510292186,-500.0,0.00022536,2]
[311939061,1705510292203,-500.0,0.00022536,2]
[311939063,1705510292236,-500.0,0.00022536,2]
[311939065,1705510292256,-500.0,0.00022536,2]
[311939067,1705510292271,-500.0,0.00022536,2]
[311939069,1705510292331,-500.0,0.00022536,2]
[311939071,1705510292363,-500.0,0.00022536,2]
[311939073,1705510292389,-500.0,0.00022536,2]
[311939075,1705510292419,-500.0,0.00022536,2]
[311939077,1705510292441,-500.0,0.00022536,2]
[311939079,1705510292470,-500.0,0.00022536,2]
[311939081,1705510292489,-500.0,0.00022536,2]
[311939083,1705510292513,-500.0,0.00022536,2]
[311939085,1705510292551,-4240.15217833,0.00022611,2]
[311939087,1705510292577,-151.42,0.00022629,2]
[311939089,1705510292613,-500.0,0.00022638,2]
[311939091,1705510292631,-180.06,0.00022739,2]
[311939092,1705510292652,-500.0,0.00022739,2]
[311939095,1705510292676,-336.8,0.00022739,2]
[311939096,1705510292711,-500.95,0.00022739,2]
[311939098,1705510292740,-500.0,0.00022739,2]
[311939100,1705510292772,-207.09,0.00022739,2]
[311939102,1705510292793,-186.23,0.00022739,2]
[311939104,1705510292819,-400.67,0.00022739,2]
[311939106,1705510292840,-500.0,0.00022739,2]
[311939108,1705510292859,-676.78,0.00022739,2]
[311939110,1705510292876,-500.0,0.00022739,2]
[311939112,1705510292897,-500.0,0.00022739,2]
[311939114,1705510292915,-934.53,0.00022739,2]
[311939116,1705510292929,-500.0,0.00022739,2]
[311939118,1705510292949,-500.0,0.00022739,2]
[311939120,1705510292975,-500.0,0.00022739,2]
[311939122,1705510292989,-500.0,0.00022739,2]
[311939124,1705510293008,-500.0,0.00022739,2]
[311939126,1705510293025,-500.0,0.00022739,2]
[311939128,1705510293039,-2430.27,0.00022739,2]
[311939130,1705510293056,-500.0,0.00022739,2]
[311939132,1705510293070,-500.0,0.00022739,2]
[311939134,1705510293087,-498.65,0.00022739,2]
[311939136,1705510293108,-477.51620621,0.00022739,2]
[311939138,1705510293122,-500.0,0.00022739,2]
[311939140,1705510293140,-500.0,0.00022739,2]
[311939142,1705510293154,-500.0,0.00022739,2]
[311939145,1705510293169,-500.0,0.00022739,2]
[311939147,1705510293182,-500.0,0.00022739,2]
[311939149,1705510293196,-479.96,0.00022739,2]
[311939151,1705510293215,-500.0,0.00022739,2]
[311939153,1705510293229,-500.0,0.00022739,2]
[311939155,1705510293245,-500.0,0.00022739,2]
[311939157,1705510293260,-500.0,0.00022739,2]
[311939159,1705510293275,-849.72,0.00022739,5]
[311939161,1705510293293,-624.9,0.00022739,2]
[311939163,1705510293306,-500.0,0.00022739,2]
[311939164,1705510293319,-500.0,0.00022739,2]
[311939165,1705510293332,-501.27578809,0.00022739,2]
[311939166,1705510293344,-500.0,0.00022739,2]
[311939167,1705510293357,-590.69,0.00022739,2]
[311939168,1705510293370,-500.0,0.00022739,2]
[311939169,1705510293383,-500.0,0.00022739,2]
[311939170,1705510293396,-500.0,0.00022739,2]
[311939171,1705510293409,-500.0,0.00022739,2]
[311939172,1705510293422,-986.29,0.00022739,2]
[311939173,1705510293434,-423.75118775,0.00022739,2]
[311939174,1705510293447,-300.97,0.00022739,2]
[311939175,1705510293462,-500.0,0.00022739,2]
[311939176,1705510293477,-500.0,0.00022739,2]
[311939177,1705510293489,-557.03,0.00022739,2]
[311939178,1705510293502,-500.0,0.00022739,2]
[311939179,1705510293524,-500.0,0.00022739,2]
[311939180,1705510293539,-500.0,0.00022739,2]
[311939181,1705510293553,-500.0,0.00022739,2]
[311939182,1705510293570,-500.0,0.00022739,2]
[311939183,1705510293582,-500.0,0.00022739,2]
[311939184,1705510293595,-500.0,0.00022739,2]
[311939185,1705510293608,-4240.15217833,0.00022755,2]
[311939186,1705510293621,-159.0,0.00022766,2]
[311939187,1705510293637,-150.0,0.0002277,2]
[311939188,1705510293650,-150.0,0.0002277,2]
[311939189,1705510293667,-157.73589,0.0002277,2]
[311939190,1705510293685,-500.0,0.00022772,2]
[311939191,1705510293700,-509.57,0.00022772,2]
[311939192,1705510293714,-500.0,0.00022773,2]
[311939193,1705510293734,-500.0,0.00022773,2]
[311939194,1705510293753,-500.0,0.00022773,2]
[311939195,1705510293767,-500.0,0.00022773,2]
[311939196,1705510293784,-500.0,0.00022773,2]
[311939197,1705510293801,-500.0,0.00022773,2]
[311939198,1705510293818,-556.75,0.00022773,2]
[311939199,1705510293844,-293.61,0.00022773,2]
[311939200,1705510293860,-534.45,0.00022773,2]
[311939201,1705510293878,-500.0,0.00022773,2]
[311939202,1705510293898,-500.0,0.00022773,2]
[311939203,1705510293920,-500.0,0.00022773,2]
[311939204,1705510293936,-500.0,0.00022773,2]
[311939205,1705510293955,-500.0,0.00022773,2]
[311939206,1705510293985,-251.5,0.00022773,2]
[311939207,1705510294006,-500.0,0.00022773,2]
[311939208,1705510294028,-500.0,0.00022773,2]
[311939209,1705510294051,-514.76,0.00022773,2]
[311939210,1705510294071,-500.0,0.00022773,2]
[311939211,1705510294095,-274.09,0.00022773,2]
[311939212,1705510294116,-500.0,0.00022773,2]
[311939213,1705510294135,-500.0,0.00022773,2]
[311939214,1705510294156,-423.63722183,0.00022773,2]
[311939215,1705510294183,-500.0,0.00022773,2]
[311939216,1705510294206,-500.0,0.00022773,2]
[311939217,1705510294236,-500.0,0.00022773,2]
[311939218,1705510294259,-347.13,0.00022773,2]
[311939219,1705510294289,-500.0,0.00022773,2]
[311939220,1705510294313,-500.0,0.00022773,2]
[311939221,1705510294653,-353.43,0.00022773,2]
[311939222,1705510294678,-500.0,0.00022773,2]
[311939223,1705510294709,-630.68,0.00022773,2]
[311939224,1705510294729,-500.0,0.00022773,2]
[311939225,1705510294749,-426.69,0.00022773,2]
[311939226,1705510294768,-358.86,0.00022773,2]
[311939227,1705510294789,-536.57,0.00022773,2]
[311939228,1705510294806,-500.0,0.00022773,2]
[311939229,1705510294827,-500.0,0.00022773,2]
[311939230,1705510294841,-500.0,0.00022773,2]
[311939231,1705510294862,-500.0,0.00022773,2]
[311939232,1705510294879,-500.0,0.00022773,2]
[311939233,1705510294896,-500.0,0.00022773,2]
[311939234,1705510294916,-500.0,0.00022773,2]
[311939235,1705510294934,-201.07,0.00022773,2]
[311939236,1705510294948,-558.8,0.00022773,2]
[311939237,1705510294963,-173.14,0.00022773,2]
[311939238,1705510294982,-500.0,0.00022773,2]
[311939239,1705510295000,-500.0,0.00022773,2]
[311939240,1705510295039,-500.0,0.00022773,2]
[311939241,1705510295097,-521.56,0.00022773,2]
[311939242,1705510295156,-500.0,0.00022773,2]
[311939243,1705510295177,-500.0,0.00022773,2]
[311939244,1705510295192,-500.0,0.00022773,2]
[311939245,1705510295207,-500.0,0.00022773,2]
[311939246,1705510295225,-500.0,0.00022773,2]
[311939247,1705510295240,-612.56,0.00022773,2]
[311939248,1705510295254,-500.0,0.00022773,2]
[311939249,1705510295269,-296.52,0.00022773,2]
[311939250,1705510295284,-484.91,0.00022773,2]
[311939251,1705510295299,-500.0,0.00022773,2]
[311939252,1705510295314,-500.0,0.00022773,2]
[311939253,1705510295331,-500.0,0.00022773,2]
[311939254,1705510295351,-500.0,0.00022773,2]
[311939255,1705510295369,-175.95,0.00022773,2]
[311939256,1705510295385,-500.0,0.00022773,2]
[311939257,1705510295403,-500.0,0.00022773,2]
[311939258,1705510295418,-500.0,0.00022773,2]
[311939259,1705510295436,-505.19,0.00022773,2]
[311939260,1705510295453,-500.0,0.00022773,2]
[311939261,1705510295476,-500.0,0.00022773,2]
[311939262,1705510295503,-500.0,0.00022773,2]
[311939263,1705510295527,-500.0,0.00022773,2]
[311939264,1705510295546,-500.0,0.00022773,2]
[311939265,1705510295565,-500.0,0.00022773,2]
[311939266,1705510295583,-500.0,0.00022773,2]
[311939267,1705510295598,-646.71,0.00022773,2]
[311939268,1705510295617,-500.0,0.00022773,2]
[311939269,1705510295636,-500.0,0.00022773,2]
[311939270,1705510295657,-617.89,0.00022773,2]
[311939271,1705510295683,-500.0,0.00022773,2]
[311939272,1705510295702,-186.63,0.00022773,2]
[311939273,1705510295716,-196.74,0.00022773,2]
[311939274,1705510295731,-536.27,0.00022773,2]
[311939275,1705510295747,-500.0,0.00022773,2]
[311939276,1705510295762,-500.0,0.00022773,2]
[311939277,1705510295778,-500.0,0.00022773,2]
[311939278,1705510295794,-500.0,0.00022773,2]
[311939279,1705510295808,-612.15,0.00022773,2]
[311939280,1705510295822,-171.18,0.00022773,2]
[311939281,1705510295836,-500.0,0.00022773,2]
[311939282,1705510295850,-500.0,0.00022773,2]
[311939283,1705510295865,-387.04,0.00022773,2]
[311939284,1705510295885,-500.0,0.00022773,2]
[311939285,1705510295907,-500.0,0.00022773,2]
[311939286,1705510295928,-502.92,0.00022773,2]
[311939287,1705510295949,-500.0,0.00022773,2]
[311939288,1705510295971,-500.0,0.00022773,2]
[311939289,1705510295985,-500.0,0.00022773,2]
[311939290,1705510296005,-500.0,0.00022773,2]
[311939291,1705510296023,-374.27,0.00022773,2]
[311939292,1705510296045,-642.35,0.00022788,2]
[311939293,1705510296067,-525.87603789,0.00022795,2]
[311939294,1705510296081,-500.0,0.00022795,2]
[311939295,1705510296100,-551.69,0.00022795,2]
[311939296,1705510296120,-500.0,0.00022795,2]
[311939297,1705510296135,-250.0,0.00022795,2]
[311939298,1705510296160,-5000.0,0.00022795,2]
[311939299,1705510296178,-500.0,0.00022798,2]
[311939300,1705510296191,-354.6,0.00022808,2]
[311939301,1705510296205,-500.0,0.00022808,2]
[311939302,1705510296220,-500.0,0.00022808,2]
[311939303,1705510296238,-500.0,0.00022808,2]
[311939304,1705510296251,-500.0,0.00022808,2]
[311939305,1705510296268,-500.0,0.00022808,2]
[311939306,1705510296284,-500.0,0.00022808,2]
[311939307,1705510296299,-500.0,0.00022808,2]
[311939308,1705510296314,-500.0,0.00022808,2]
[311939309,1705510296327,-450.58,0.00022808,2]
[311939310,1705510296342,-500.0,0.00022808,2]
[311939311,1705510296357,-500.0,0.00022808,2]
[311939312,1705510296373,-500.0,0.00022808,2]
[311939313,1705510296387,-729.89,0.00022808,2]
[311939314,1705510296404,-500.0,0.00022808,2]
[311939315,1705510296424,-500.0,0.00022808,2]
[311939316,1705510296450,-500.0,0.00022808,2]
[311939317,1705510296472,-500.0,0.00022808,2]
[311939318,1705510296490,-500.0,0.00022808,2]
[311939319,1705510296507,-500.0,0.00022808,2]
[311939320,1705510296529,-500.0,0.00022808,2]
[311939321,1705510296547,-500.0,0.00022808,2]
[311939322,1705510296562,-500.0,0.00022808,2]
[311939323,1705510296583,-414.55,0.00022809,2]
[311939324,1705510296605,-293.96,0.00022809,2]
[311939325,1705510296624,-639.52320406,0.00022809,2]
[311939326,1705510296638,-500.0,0.00022809,2]
[311939327,1705510296659,-500.0,0.00022809,2]
[311939328,1705510296676,-500.0,0.00022809,2]
[311939329,1705510296691,-611.92,0.00022809,2]
[311939330,1705510296706,-365.03,0.00022809,2]
[311939331,1705510296726,-500.0,0.00022809,2]
[311939332,1705510296744,-366.16,0.00022809,2]
[311939333,1705510296764,-258.83,0.00022809,2]
[311939334,1705510296782,-488.3,0.00022809,2]
[311939335,1705510296802,-421.12,0.00022809,2]
[311939336,1705510296819,-268.93,0.00022809,2]
[311939337,1705510296836,-500.0,0.00022809,2]
[311939338,1705510296852,-587.26,0.00022809,2]
[311939339,1705510296872,-323.04,0.00022809,2]
[311939340,1705510296893,-500.0,0.00022809,2]
[311939341,1705510296909,-373.69,0.00022809,2]
[311939342,1705510296927,-500.0,0.00022809,2]
[311939343,1705510296953,-315.02,0.00022809,2]
[311939344,1705510296971,-500.0,0.00022809,2]
[311939345,1705510296990,-500.0,0.00022809,2]
[311939346,1705510297005,-324.11,0.00022809,2]
[311939347,1705510297024,-312.56,0.00022809,2]
[311939348,1705510297040,-269.54,0.00022809,2]
[311939349,1705510297057,-500.0,0.00022809,2]
[311939350,1705510297079,-218.17,0.00022809,2]
[311939351,1705510297095,-330.92,0.00022809,2]
[311939352,1705510297108,-500.0,0.00022809,2]
[311939353,1705510297131,-169.72,0.00022809,2]
[311939354,1705510297148,-500.0,0.00022809,2]
[311939355,1705510297164,-501.1,0.00022809,2]
[311939356,1705510297182,-500.0,0.00022809,2]
[311939357,1705510297196,-195.84,0.00022809,2]
[311939358,1705510297217,-192.26,0.00022809,2]
[311939359,1705510297231,-205.53,0.00022809,2]
[311939360,1705510297244,-256.59,0.00022809,2]
[311939361,1705510297256,-154.31,0.00022809,2]
[311939362,1705510297268,-500.0,0.00022809,2]
[311939363,1705510297280,-500.0,0.00022809,2]
[311939364,1705510297292,-500.0,0.00022809,2]
[311939365,1705510297305,-500.0,0.00022809,2]
[311939366,1705510297318,-500.0,0.00022809,2]
[311939367,1705510297331,-500.0,0.00022809,2]
[311939368,1705510297345,-500.0,0.00022809,2]